[Event "Titled Tuesday Blitz May 24 Late 2022"]
[White "Gil Alba, Hector Luis"]
[Black "Gatterer, Florian"]
[WhiteFideId "3504670"]
[BlackFideId "811688"]
[WhiteElo "2331"]
[BlackElo "2218"]
[Result "1-0"]
[Round "02"]
[TimeControl "180+1"]
[Date "2022.05.25"]
[WhiteClock "0:01:14"]
[BlackClock "0:00:08"]

1. e4 {[%clk 0:03:00]}  c5 {[%clk 0:02:59]} 2. Nf3 {[%clk 0:03:00]}  Nc6 {[%clk 0:02:59]} 3. Bb5 {[%clk 0:02:59]}  e5 {[%clk 0:02:58]} 4. O-O {[%clk 0:02:57]}  Bd6 {[%clk 0:02:58]} 5. Na3 {[%clk 0:02:55]}  Bc7 {[%clk 0:02:47]} 6. Nc4 {[%clk 0:02:53]}  Qe7 {[%clk 0:02:46]} 7. c3 {[%clk 0:02:46]}  a6 {[%clk 0:02:46]} 8. Bxc6 {[%clk 0:02:45]}  dxc6 {[%clk 0:02:46]} 9. d4 {[%clk 0:02:39]}  cxd4 {[%clk 0:02:45]} 10. cxd4 {[%clk 0:02:39]}  exd4 {[%clk 0:02:33]} 11. Qxd4 {[%clk 0:02:34]}  f6 {[%clk 0:01:54]} 12. e5 {[%clk 0:02:31]}  Be6 {[%clk 0:01:46]} 13. Nd6+ {[%clk 0:02:25]}  Bxd6 {[%clk 0:01:42]} 14. exd6 {[%clk 0:02:22]}  Qd7 {[%clk 0:01:40]} 15. Re1 {[%clk 0:02:22]}  Rd8 {[%clk 0:01:07]} 16. Bf4 {[%clk 0:02:16]}  Kf7 {[%clk 0:01:06]} 17. Bg3 {[%clk 0:01:44]}  h5 {[%clk 0:01:05]} 18. Qf4 {[%clk 0:01:38]}  Bd5 {[%clk 0:00:17]} 19. Ne5+ {[%clk 0:01:35]}  Kf8 {[%clk 0:00:13]} 20. Nxd7+ {[%clk 0:01:34]}  Rxd7 {[%clk 0:00:13]} 21. Qf5 {[%clk 0:01:33]}  Rd8 {[%clk 0:00:09]} 22. d7 {[%clk 0:01:29]}  Nh6 {[%clk 0:00:09]} 23. Re8+ {[%clk 0:01:20]}  Rxe8 {[%clk 0:00:08]} 24. dxe8=Q+ {[%clk 0:01:18]}  Kxe8 {[%clk 0:00:08]} 25. Qc8+ {[%clk 0:01:18]}  Kf7 {[%clk 0:00:08]} 26. Qxh8 {[%clk 0:01:14]} 1-0


[Site "https://www.chess.com"]

[Event "Titled Tuesday Blitz May 24 Late 2022"]
[White "Goltsev, Dmitry"]
[Black "Huber, Benedikt"]
[WhiteFideId "24176710"]
[BlackFideId "12923583"]
[WhiteElo "2258"]
[BlackElo "1979"]
[Result "1-0"]
[Round "02"]
[TimeControl "180+1"]
[Date "2022.05.25"]
[WhiteClock "0:00:34"]
[BlackClock "0:00:14"]

1. e4 {[%clk 0:03:00]}  c5 {[%clk 0:02:59]} 2. Nf3 {[%clk 0:03:00]}  e6 {[%clk 0:02:56]} 3. d4 {[%clk 0:03:00]}  cxd4 {[%clk 0:02:56]} 4. Nxd4 {[%clk 0:03:01]}  Nc6 {[%clk 0:02:57]} 5. Nc3 {[%clk 0:03:01]}  Qc7 {[%clk 0:02:57]} 6. Be2 {[%clk 0:03:01]}  a6 {[%clk 0:02:57]} 7. O-O {[%clk 0:03:01]}  Nf6 {[%clk 0:02:57]} 8. Be3 {[%clk 0:03:01]}  d6 {[%clk 0:02:56]} 9. f4 {[%clk 0:03:01]}  Be7 {[%clk 0:02:56]} 10. h3 {[%clk 0:03:02]}  O-O {[%clk 0:02:55]} 11. Qd2 {[%clk 0:03:02]}  Nxd4 {[%clk 0:02:24]} 12. Bxd4 {[%clk 0:03:01]}  e5 {[%clk 0:02:25]} 13. Be3 {[%clk 0:02:57]}  Be6 {[%clk 0:02:24]} 14. Rad1 {[%clk 0:02:46]}  b5 {[%clk 0:02:20]} 15. a3 {[%clk 0:02:43]}  Rac8 {[%clk 0:02:18]} 16. g4 {[%clk 0:02:38]}  Bc4 {[%clk 0:02:06]} 17. g5 {[%clk 0:02:33]}  Nd7 {[%clk 0:02:06]} 18. Bxc4 {[%clk 0:02:29]}  Qxc4 {[%clk 0:02:07]} 19. f5 {[%clk 0:02:25]}  Nc5 {[%clk 0:02:00]} 20. b3 {[%clk 0:02:18]}  Nxb3 {[%clk 0:01:42]} 21. cxb3 {[%clk 0:02:07]}  Qxc3 {[%clk 0:01:41]} 22. Qf2 {[%clk 0:02:04]}  f6 {[%clk 0:01:24]} 23. g6 {[%clk 0:01:57]}  h6 {[%clk 0:01:23]} 24. Rde1 {[%clk 0:01:38]}  Rfd8 {[%clk 0:01:07]} 25. Qh4 {[%clk 0:01:34]}  Bf8 {[%clk 0:01:07]} 26. Re2 {[%clk 0:01:23]}  Qd3 {[%clk 0:01:04]} 27. Bxh6 {[%clk 0:01:06]}  gxh6 {[%clk 0:00:49]} 28. Qxf6 {[%clk 0:01:06]}  Bg7 {[%clk 0:00:16]} 29. Qe6+ {[%clk 0:00:44]}  Kh8 {[%clk 0:00:16]} 30. f6 {[%clk 0:00:44]}  Rg8 {[%clk 0:00:16]} 31. fxg7+ {[%clk 0:00:44]}  Rxg7 {[%clk 0:00:15]} 32. Qxc8+ {[%clk 0:00:42]}  Rg8 {[%clk 0:00:16]} 33. g7+ {[%clk 0:00:34]}  Kxg7 {[%clk 0:00:14]} 34. Rg2+ {[%clk 0:00:34]} 1-0


[Site "https://www.chess.com"]

[Event "Titled Tuesday Blitz May 24 Late 2022"]
[White "Grischuk, Alexander"]
[Black "Skliarov, Viktor"]
[WhiteFideId "4126025"]
[BlackFideId "14106736"]
[WhiteElo "2762"]
[BlackElo "2229"]
[Result "1-0"]
[Round "02"]
[TimeControl "180+1"]
[Date "2022.05.24"]
[WhiteClock "0:01:28"]
[BlackClock "0:00:19"]

1. d4 {[%clk 0:03:00]}  Nf6 {[%clk 0:03:00]} 2. Nf3 {[%clk 0:03:01]}  g6 {[%clk 0:03:00]} 3. c4 {[%clk 0:02:59]}  Bg7 {[%clk 0:03:00]} 4. Nc3 {[%clk 0:02:59]}  O-O {[%clk 0:03:01]} 5. e4 {[%clk 0:02:59]}  d6 {[%clk 0:03:02]} 6. h3 {[%clk 0:03:00]}  c5 {[%clk 0:02:58]} 7. d5 {[%clk 0:03:00]}  e6 {[%clk 0:02:58]} 8. Bd3 {[%clk 0:02:57]}  exd5 {[%clk 0:02:58]} 9. cxd5 {[%clk 0:02:55]}  a6 {[%clk 0:02:55]} 10. a4 {[%clk 0:02:55]}  Nbd7 {[%clk 0:02:53]} 11. O-O {[%clk 0:02:52]}  Ne8 {[%clk 0:02:53]} 12. Re1 {[%clk 0:02:48]}  Qc7 {[%clk 0:02:49]} 13. Nd2 {[%clk 0:02:42]}  Ne5 {[%clk 0:02:40]} 14. Bf1 {[%clk 0:02:43]}  f5 {[%clk 0:02:40]} 15. f4 {[%clk 0:02:38]}  Nf7 {[%clk 0:02:38]} 16. Nc4 {[%clk 0:02:37]}  Bd4+ {[%clk 0:01:55]} 17. Be3 {[%clk 0:02:37]}  Bxe3+ {[%clk 0:01:29]} 18. Rxe3 {[%clk 0:02:36]}  fxe4 {[%clk 0:01:26]} 19. Nxe4 {[%clk 0:02:35]}  Bf5 {[%clk 0:01:26]} 20. Ng3 {[%clk 0:02:20]}  Ng7 {[%clk 0:01:25]} 21. Qd2 {[%clk 0:02:16]}  b5 {[%clk 0:01:22]} 22. Na5 {[%clk 0:02:15]}  c4 {[%clk 0:01:05]} 23. Nc6 {[%clk 0:02:10]}  Rae8 {[%clk 0:01:03]} 24. axb5 {[%clk 0:02:09]}  axb5 {[%clk 0:01:02]} 25. Kh2 {[%clk 0:02:02]}  Qb6 {[%clk 0:00:46]} 26. Ne7+ {[%clk 0:01:54]}  Kh8 {[%clk 0:00:46]} 27. Rae1 {[%clk 0:01:54]}  Bd7 {[%clk 0:00:37]} 28. Qc3 {[%clk 0:01:49]}  Qc5 {[%clk 0:00:30]} 29. Ne4 {[%clk 0:01:36]}  b4 {[%clk 0:00:20]} 30. Nxc5 {[%clk 0:01:33]}  bxc3 {[%clk 0:00:20]} 31. Nxd7 {[%clk 0:01:33]}  cxb2 {[%clk 0:00:20]} 32. Nxf8 {[%clk 0:01:32]}  Rxf8 {[%clk 0:00:20]} 33. Bxc4 {[%clk 0:01:31]}  Rb8 {[%clk 0:00:19]} 34. Rb3 {[%clk 0:01:28]} 1-0


[Site "https://www.chess.com"]

[Event "Titled Tuesday Blitz May 24 Late 2022"]
[White "Hasangatin, Ramil"]
[Black "Grigoriants, Sergey"]
[WhiteFideId "4122160"]
[BlackFideId "4130804"]
[WhiteElo "2399"]
[BlackElo "2502"]
[Result "1-0"]
[Round "02"]
[TimeControl "180+1"]
[Date "2022.05.24"]
[WhiteClock "0:00:02"]
[BlackClock "0:00:05"]

1. e4 {[%clk 0:03:00]}  c5 {[%clk 0:02:58]} 2. Nf3 {[%clk 0:03:01]}  e6 {[%clk 0:02:57]} 3. g3 {[%clk 0:03:00]}  Nc6 {[%clk 0:02:57]} 4. Bg2 {[%clk 0:03:00]}  Nf6 {[%clk 0:02:57]} 5. d3 {[%clk 0:03:00]}  g6 {[%clk 0:02:51]} 6. O-O {[%clk 0:02:57]}  Bg7 {[%clk 0:02:51]} 7. Bg5 {[%clk 0:02:25]}  h6 {[%clk 0:02:49]} 8. Bf4 {[%clk 0:02:25]}  d6 {[%clk 0:02:43]} 9. c3 {[%clk 0:02:19]}  e5 {[%clk 0:02:39]} 10. Be3 {[%clk 0:02:12]}  O-O {[%clk 0:02:39]} 11. h3 {[%clk 0:02:10]}  Re8 {[%clk 0:02:38]} 12. a3 {[%clk 0:02:03]}  b6 {[%clk 0:02:36]} 13. b4 {[%clk 0:01:58]}  Be6 {[%clk 0:02:22]} 14. b5 {[%clk 0:01:55]}  Nb8 {[%clk 0:02:02]} 15. c4 {[%clk 0:01:52]}  a6 {[%clk 0:02:02]} 16. Nc3 {[%clk 0:01:44]}  axb5 {[%clk 0:02:02]} 17. cxb5 {[%clk 0:01:36]}  Nbd7 {[%clk 0:02:00]} 18. Nd2 {[%clk 0:01:32]}  Nf8 {[%clk 0:01:52]} 19. Nc4 {[%clk 0:01:20]}  Bxc4 {[%clk 0:01:51]} 20. dxc4 {[%clk 0:01:21]}  Ne6 {[%clk 0:01:52]} 21. a4 {[%clk 0:01:09]}  Nd4 {[%clk 0:01:51]} 22. Bd2 {[%clk 0:00:52]}  Qd7 {[%clk 0:01:39]} 23. Re1 {[%clk 0:00:52]}  Ra7 {[%clk 0:01:37]} 24. Kh2 {[%clk 0:00:51]}  Rea8 {[%clk 0:01:37]} 25. Bf1 {[%clk 0:00:50]}  Ne8 {[%clk 0:01:33]} 26. Bd3 {[%clk 0:00:50]}  Nc7 {[%clk 0:01:33]} 27. Kg2 {[%clk 0:00:49]}  Rf8 {[%clk 0:01:29]} 28. Qg4 {[%clk 0:00:42]}  Qd8 {[%clk 0:01:20]} 29. Reb1 {[%clk 0:00:41]}  Qa8 {[%clk 0:01:13]} 30. Ra2 {[%clk 0:00:30]}  Kh7 {[%clk 0:01:11]} 31. Qh4 {[%clk 0:00:18]}  f5 {[%clk 0:01:08]} 32. g4 {[%clk 0:00:14]}  Nf3 {[%clk 0:00:58]} 33. Qg3 {[%clk 0:00:10]}  Nxd2 {[%clk 0:00:57]} 34. Rxd2 {[%clk 0:00:11]}  Ne6 {[%clk 0:00:57]} 35. gxf5 {[%clk 0:00:09]}  gxf5 {[%clk 0:00:56]} 36. Kh2 {[%clk 0:00:09]}  f4 {[%clk 0:00:51]} 37. Qg4 {[%clk 0:00:10]}  Nd4 {[%clk 0:00:46]} 38. f3 {[%clk 0:00:10]}  Bf6 {[%clk 0:00:45]} 39. Rg2 {[%clk 0:00:10]}  Rg7 {[%clk 0:00:43]} 40. Qh5 {[%clk 0:00:08]}  Rfg8 {[%clk 0:00:43]} 41. Rbg1 {[%clk 0:00:07]}  Qa5 {[%clk 0:00:34]} 42. Nd5 {[%clk 0:00:07]}  Rxg2+ {[%clk 0:00:23]} 43. Rxg2 {[%clk 0:00:08]}  Rxg2+ {[%clk 0:00:23]} 44. Kxg2 {[%clk 0:00:09]}  Qd2+ {[%clk 0:00:24]} 45. Kh1 {[%clk 0:00:09]}  Qe1+ {[%clk 0:00:23]} 46. Kh2 {[%clk 0:00:07]}  Qg3+ {[%clk 0:00:18]} 47. Kh1 {[%clk 0:00:08]}  Bg7 {[%clk 0:00:17]} 48. Qf7 {[%clk 0:00:07]}  Qxh3+ {[%clk 0:00:14]} 49. Kg1 {[%clk 0:00:07]}  Qg3+ {[%clk 0:00:15]} 50. Kh1 {[%clk 0:00:08]}  Qxf3+ {[%clk 0:00:15]} 51. Kh2 {[%clk 0:00:08]}  Qg3+ {[%clk 0:00:12]} 52. Kh1 {[%clk 0:00:08]}  Qh4+ {[%clk 0:00:12]} 53. Kg1 {[%clk 0:00:06]}  f3 {[%clk 0:00:13]} 54. Bf1 {[%clk 0:00:02]}  Qg5+ {[%clk 0:00:08]} 55. Kh1 {[%clk 0:00:02]}  h5 {[%clk 0:00:06]} 56. Ne7 {[%clk 0:00:02]}  Qh4+ {[%clk 0:00:05]} 57. Kg1 {[%clk 0:00:02]} 1-0


[Site "https://www.chess.com"]

[Event "Titled Tuesday Blitz May 24 Late 2022"]
[White "Janaszak, Dawid"]
[Black "Melkumyan, Hrant"]
[WhiteFideId "1119206"]
[BlackFideId "13302485"]
[WhiteElo "2199"]
[BlackElo "2604"]
[Result "0-1"]
[Round "02"]
[TimeControl "180+1"]
[Date "2022.05.24"]
[WhiteClock "0:00:08"]
[BlackClock "0:00:07"]

1. e4 {[%clk 0:03:00]}  e6 {[%clk 0:03:00]} 2. d4 {[%clk 0:02:59]}  d5 {[%clk 0:03:01]} 3. Bd3 {[%clk 0:03:00]}  dxe4 {[%clk 0:02:56]} 4. Bxe4 {[%clk 0:03:00]}  Nf6 {[%clk 0:02:57]} 5. Bf3 {[%clk 0:03:01]}  Be7 {[%clk 0:02:56]} 6. Nc3 {[%clk 0:02:49]}  O-O {[%clk 0:02:56]} 7. Bf4 {[%clk 0:02:43]}  Na6 {[%clk 0:02:41]} 8. Nge2 {[%clk 0:02:41]}  c5 {[%clk 0:02:37]} 9. O-O {[%clk 0:02:22]}  Qb6 {[%clk 0:02:36]} 10. Na4 {[%clk 0:02:14]}  Qa5 {[%clk 0:02:35]} 11. Nxc5 {[%clk 0:02:11]}  Nxc5 {[%clk 0:02:34]} 12. dxc5 {[%clk 0:02:12]}  Qxc5 {[%clk 0:02:34]} 13. Qd4 {[%clk 0:01:53]}  Qxc2 {[%clk 0:01:51]} 14. Rfc1 {[%clk 0:01:47]}  Qf5 {[%clk 0:01:51]} 15. Rc7 {[%clk 0:01:14]}  Bd8 {[%clk 0:01:50]} 16. Rc5 {[%clk 0:01:04]}  Bb6 {[%clk 0:01:50]} 17. Rxf5 {[%clk 0:01:04]}  Bxd4 {[%clk 0:01:50]} 18. Rb5 {[%clk 0:01:05]}  Bb6 {[%clk 0:01:48]} 19. a4 {[%clk 0:00:57]}  Bd7 {[%clk 0:01:48]} 20. Rb3 {[%clk 0:00:56]}  Nd5 {[%clk 0:01:10]} 21. Bxd5 {[%clk 0:00:54]}  exd5 {[%clk 0:01:10]} 22. a5 {[%clk 0:00:54]}  Bd8 {[%clk 0:01:10]} 23. Rxb7 {[%clk 0:00:53]}  Bc6 {[%clk 0:01:09]} 24. Rb3 {[%clk 0:00:52]}  Bf6 {[%clk 0:01:09]} 25. Be3 {[%clk 0:00:46]}  a6 {[%clk 0:01:03]} 26. Nd4 {[%clk 0:00:45]}  Bd7 {[%clk 0:00:58]} 27. g3 {[%clk 0:00:39]}  Rfb8 {[%clk 0:00:57]} 28. Rb6 {[%clk 0:00:31]}  h5 {[%clk 0:00:54]} 29. Rd1 {[%clk 0:00:26]}  Rc8 {[%clk 0:00:46]} 30. Nf3 {[%clk 0:00:14]}  Bd8 {[%clk 0:00:32]} 31. Rb7 {[%clk 0:00:12]}  Bg4 {[%clk 0:00:31]} 32. Kg2 {[%clk 0:00:12]}  Bxa5 {[%clk 0:00:21]} 33. Rxd5 {[%clk 0:00:11]}  Bd8 {[%clk 0:00:22]} 34. Ne5 {[%clk 0:00:08]}  Be6 {[%clk 0:00:21]} 35. Rd2 {[%clk 0:00:08]}  Bf6 {[%clk 0:00:22]} 36. Nd7 {[%clk 0:00:08]}  Bd8 {[%clk 0:00:15]} 37. Nb6 {[%clk 0:00:07]}  Bxb6 {[%clk 0:00:10]} 38. Rxb6 {[%clk 0:00:08]}  a5 {[%clk 0:00:10]} 39. Bd4 {[%clk 0:00:08]}  a4 {[%clk 0:00:11]} 40. Rd1 {[%clk 0:00:06]}  Rd8 {[%clk 0:00:11]} 41. Rd2 {[%clk 0:00:06]}  Rd5 {[%clk 0:00:12]} 42. Bc3 {[%clk 0:00:06]}  Rf5 {[%clk 0:00:12]} 43. f3 {[%clk 0:00:06]}  Bd5 {[%clk 0:00:12]} 44. Rd3 {[%clk 0:00:06]}  Re8 {[%clk 0:00:12]} 45. Kf2 {[%clk 0:00:06]}  f6 {[%clk 0:00:08]} 46. Rb5 {[%clk 0:00:06]}  Be6 {[%clk 0:00:05]} 47. Rxf5 {[%clk 0:00:06]}  Bxf5 {[%clk 0:00:06]} 48. Re3 {[%clk 0:00:07]}  Rc8 {[%clk 0:00:05]} 49. Ke1 {[%clk 0:00:06]}  Bg6 {[%clk 0:00:05]} 50. Kd2 {[%clk 0:00:07]}  Rd8+ {[%clk 0:00:06]} 51. Ke1 {[%clk 0:00:06]}  Kf7 {[%clk 0:00:06]} 52. Kf2 {[%clk 0:00:05]}  Rc8 {[%clk 0:00:07]} 53. f4 {[%clk 0:00:05]}  Bf5 {[%clk 0:00:07]} 54. Re2 {[%clk 0:00:05]}  a3 {[%clk 0:00:07]} 55. Re1 {[%clk 0:00:06]}  a2 {[%clk 0:00:07]} 56. Ra1 {[%clk 0:00:06]}  Bb1 {[%clk 0:00:07]} 57. Ke3 {[%clk 0:00:06]}  Ke6 {[%clk 0:00:08]} 58. Kd2 {[%clk 0:00:05]}  Kd5 {[%clk 0:00:08]} 59. Kc1 {[%clk 0:00:05]}  Kc4 {[%clk 0:00:09]} 60. Rxb1 {[%clk 0:00:05]}  axb1=Q+ {[%clk 0:00:10]} 61. Kxb1 {[%clk 0:00:06]}  Kb3 {[%clk 0:00:10]} 62. Kc1 {[%clk 0:00:06]}  Rd8 {[%clk 0:00:11]} 63. h3 {[%clk 0:00:05]}  Rd3 {[%clk 0:00:11]} 64. g4 {[%clk 0:00:05]}  h4 {[%clk 0:00:11]} 65. g5 {[%clk 0:00:06]}  fxg5 {[%clk 0:00:11]} 66. fxg5 {[%clk 0:00:06]}  g6 {[%clk 0:00:11]} 67. Be1 {[%clk 0:00:06]}  Rxh3 {[%clk 0:00:11]} 68. Kd2 {[%clk 0:00:07]}  Rh1 {[%clk 0:00:07]} 69. Bf2 {[%clk 0:00:07]}  h3 {[%clk 0:00:07]} 70. Ke2 {[%clk 0:00:07]}  h2 {[%clk 0:00:08]} 71. Bg3 {[%clk 0:00:08]}  Rb1 {[%clk 0:00:07]} 0-1


[Site "https://www.chess.com"]

[Event "Titled Tuesday Blitz May 24 Late 2022"]
[White "Jorquera, Marcelo"]
[Black "Al-Tarboush, Ward"]
[WhiteFideId "3401197"]
[BlackFideId "7601450"]
[WhiteElo "2136"]
[BlackElo "2294"]
[Result "0-1"]
[Round "02"]
[TimeControl "180+1"]
[Date "2022.05.25"]
[WhiteClock "0:00:03"]
[BlackClock "0:01:09"]

1. e4 {[%clk 0:03:00]}  e6 {[%clk 0:02:59]} 2. Qe2 {[%clk 0:02:59]}  c5 {[%clk 0:02:57]} 3. Nc3 {[%clk 0:02:55]}  Nc6 {[%clk 0:02:58]} 4. Nf3 {[%clk 0:02:55]}  Be7 {[%clk 0:02:58]} 5. g3 {[%clk 0:02:54]}  d5 {[%clk 0:02:58]} 6. d3 {[%clk 0:02:53]}  d4 {[%clk 0:02:58]} 7. Nb1 {[%clk 0:02:53]}  e5 {[%clk 0:02:58]} 8. Bg2 {[%clk 0:02:53]}  Bg4 {[%clk 0:02:56]} 9. h3 {[%clk 0:02:53]}  Be6 {[%clk 0:02:54]} 10. a4 {[%clk 0:02:50]}  Qd7 {[%clk 0:02:54]} 11. Ng5 {[%clk 0:02:41]}  Bxg5 {[%clk 0:02:53]} 12. Bxg5 {[%clk 0:02:42]}  f6 {[%clk 0:02:54]} 13. Bd2 {[%clk 0:02:41]}  Nge7 {[%clk 0:02:55]} 14. b3 {[%clk 0:02:39]}  g5 {[%clk 0:02:54]} 15. Na3 {[%clk 0:02:38]}  O-O-O {[%clk 0:02:53]} 16. O-O-O {[%clk 0:02:32]}  Kb8 {[%clk 0:02:46]} 17. f4 {[%clk 0:02:22]}  h6 {[%clk 0:02:40]} 18. Rdf1 {[%clk 0:02:11]}  Qd6 {[%clk 0:02:37]} 19. Kb2 {[%clk 0:02:04]}  Rhf8 {[%clk 0:02:29]} 20. Rf2 {[%clk 0:02:03]}  Nb4 {[%clk 0:02:23]} 21. Rhf1 {[%clk 0:01:53]}  Qb6 {[%clk 0:02:22]} 22. Bxb4 {[%clk 0:01:35]}  cxb4 {[%clk 0:02:23]} 23. Nc4 {[%clk 0:01:33]}  Bxc4 {[%clk 0:02:23]} 24. dxc4 {[%clk 0:01:31]}  d3 {[%clk 0:02:20]} 25. cxd3 {[%clk 0:01:26]}  Nc6 {[%clk 0:02:20]} 26. fxe5 {[%clk 0:01:25]}  Nxe5 {[%clk 0:02:20]} 27. Rd1 {[%clk 0:01:13]}  Rxd3 {[%clk 0:02:19]} 28. Rff1 {[%clk 0:00:56]}  Qd4+ {[%clk 0:02:18]} 29. Ka2 {[%clk 0:00:55]}  Rd8 {[%clk 0:02:17]} 30. Rxd3 {[%clk 0:00:54]}  Nxd3 {[%clk 0:02:18]} 31. e5 {[%clk 0:00:42]}  Nxe5 {[%clk 0:02:15]} 32. Qe4 {[%clk 0:00:33]}  Qd2+ {[%clk 0:02:03]} 33. Kb1 {[%clk 0:00:29]}  Qd3+ {[%clk 0:02:02]} 34. Qxd3 {[%clk 0:00:27]}  Rxd3 {[%clk 0:02:03]} 35. Rxf6 {[%clk 0:00:10]}  Rxb3+ {[%clk 0:02:03]} 36. Kc1 {[%clk 0:00:08]}  Rc3+ {[%clk 0:01:58]} 37. Kb1 {[%clk 0:00:07]}  Rb3+ {[%clk 0:01:58]} 38. Kc1 {[%clk 0:00:07]}  Rxg3 {[%clk 0:01:58]} 39. Bd5 {[%clk 0:00:06]}  b3 {[%clk 0:01:55]} 40. Kb2 {[%clk 0:00:02]}  Rxh3 {[%clk 0:01:51]} 41. Re6 {[%clk 0:00:02]}  Re3 {[%clk 0:01:48]} 42. Rxh6 {[%clk 0:00:01]}  g4 {[%clk 0:01:41]} 43. Rh7 {[%clk 0:00:01]}  g3 {[%clk 0:01:29]} 44. Rxb7+ {[%clk 0:00:02]}  Kc8 {[%clk 0:01:27]} 45. Rg7 {[%clk 0:00:03]}  a5 {[%clk 0:01:14]} 46. c5 {[%clk 0:00:03]}  Nd3+ {[%clk 0:01:12]} 47. Kxb3 {[%clk 0:00:02]}  Nxc5+ {[%clk 0:01:12]} 48. Kc4 {[%clk 0:00:03]}  Nxa4 {[%clk 0:01:11]} 49. Be6+ {[%clk 0:00:03]}  Rxe6 {[%clk 0:01:09]} 0-1


[Site "https://www.chess.com"]

[Event "Titled Tuesday Blitz May 24 Late 2022"]
[White "Karttunen, Mika"]
[Black "Rasulov, Vugar"]
[WhiteFideId "502081"]
[BlackFideId "13402390"]
[WhiteElo "2343"]
[BlackElo "2560"]
[Result "0-1"]
[Round "02"]
[TimeControl "180+1"]
[Date "2022.05.24"]
[WhiteClock "0:00:10"]
[BlackClock "0:00:06"]

1. e4 {[%clk 0:03:00]}  c5 {[%clk 0:02:59]} 2. Nf3 {[%clk 0:02:59]}  Nc6 {[%clk 0:02:59]} 3. d4 {[%clk 0:03:00]}  cxd4 {[%clk 0:03:00]} 4. Nxd4 {[%clk 0:03:00]}  Nf6 {[%clk 0:03:00]} 5. Nc3 {[%clk 0:02:59]}  d6 {[%clk 0:03:01]} 6. Bg5 {[%clk 0:02:55]}  e6 {[%clk 0:03:00]} 7. f3 {[%clk 0:02:55]}  a6 {[%clk 0:03:00]} 8. Qd2 {[%clk 0:02:54]}  h6 {[%clk 0:02:59]} 9. Be3 {[%clk 0:02:53]}  Be7 {[%clk 0:02:57]} 10. O-O-O {[%clk 0:02:53]}  Qc7 {[%clk 0:02:57]} 11. g4 {[%clk 0:02:40]}  Ne5 {[%clk 0:02:54]} 12. h4 {[%clk 0:02:34]}  b5 {[%clk 0:02:54]} 13. a3 {[%clk 0:02:33]}  Rb8 {[%clk 0:02:53]} 14. Kb1 {[%clk 0:02:22]}  Nfd7 {[%clk 0:02:49]} 15. f4 {[%clk 0:02:06]}  Nxg4 {[%clk 0:02:45]} 16. f5 {[%clk 0:01:56]}  Nde5 {[%clk 0:02:33]} 17. fxe6 {[%clk 0:01:50]}  fxe6 {[%clk 0:02:33]} 18. Bf4 {[%clk 0:01:26]}  O-O {[%clk 0:02:26]} 19. Rg1 {[%clk 0:01:16]}  Bf6 {[%clk 0:02:08]} 20. Be2 {[%clk 0:01:12]}  h5 {[%clk 0:02:04]} 21. Bxe5 {[%clk 0:01:08]}  dxe5 {[%clk 0:02:03]} 22. Nb3 {[%clk 0:00:51]}  Rd8 {[%clk 0:01:54]} 23. Qc1 {[%clk 0:00:49]}  Bb7 {[%clk 0:01:49]} 24. Bxg4 {[%clk 0:00:49]}  hxg4 {[%clk 0:01:50]} 25. Rxg4 {[%clk 0:00:46]}  Rxd1 {[%clk 0:01:47]} 26. Qxd1 {[%clk 0:00:45]}  Rd8 {[%clk 0:01:39]} 27. Qg1 {[%clk 0:00:44]}  Qf7 {[%clk 0:01:27]} 28. Nc5 {[%clk 0:00:44]}  Bc8 {[%clk 0:01:23]} 29. Nd3 {[%clk 0:00:35]}  Bd7 {[%clk 0:01:23]} 30. Qg3 {[%clk 0:00:27]}  Qh5 {[%clk 0:01:18]} 31. Nc5 {[%clk 0:00:27]}  Bc8 {[%clk 0:01:12]} 32. Nd3 {[%clk 0:00:27]}  Kf7 {[%clk 0:01:09]} 33. Qg1 {[%clk 0:00:26]}  Bd7 {[%clk 0:01:02]} 34. Nc5 {[%clk 0:00:23]}  Bc8 {[%clk 0:00:57]} 35. Nd3 {[%clk 0:00:22]}  Kg8 {[%clk 0:00:41]} 36. Qg3 {[%clk 0:00:20]}  Kh7 {[%clk 0:00:41]} 37. Ka2 {[%clk 0:00:19]}  Rd4 {[%clk 0:00:34]} 38. Kb1 {[%clk 0:00:19]}  Bd7 {[%clk 0:00:28]} 39. Nc5 {[%clk 0:00:19]}  Bc8 {[%clk 0:00:24]} 40. Nd3 {[%clk 0:00:19]}  Rd6 {[%clk 0:00:23]} 41. Ka2 {[%clk 0:00:17]}  Rb6 {[%clk 0:00:22]} 42. Kb1 {[%clk 0:00:17]}  a5 {[%clk 0:00:23]} 43. Qg1 {[%clk 0:00:16]}  Rb7 {[%clk 0:00:17]} 44. Rg5 {[%clk 0:00:16]}  Bxg5 {[%clk 0:00:16]} 45. hxg5 {[%clk 0:00:17]}  b4 {[%clk 0:00:16]} 46. axb4 {[%clk 0:00:17]}  axb4 {[%clk 0:00:17]} 47. Na4 {[%clk 0:00:17]}  b3 {[%clk 0:00:17]} 48. c3 {[%clk 0:00:16]}  Rd7 {[%clk 0:00:15]} 49. Nac5 {[%clk 0:00:16]}  Rd8 {[%clk 0:00:15]} 50. Qe1 {[%clk 0:00:12]}  Qh2 {[%clk 0:00:12]} 51. Qd1 {[%clk 0:00:11]}  Ba6 {[%clk 0:00:12]} 52. Nxa6 {[%clk 0:00:10]}  Rxd3 {[%clk 0:00:12]} 53. Qxb3 {[%clk 0:00:08]}  Qg1+ {[%clk 0:00:09]} 54. Ka2 {[%clk 0:00:09]}  Qxg5 {[%clk 0:00:10]} 55. Nb4 {[%clk 0:00:09]}  Rd6 {[%clk 0:00:09]} 56. Qc4 {[%clk 0:00:09]}  Qe7 {[%clk 0:00:09]} 57. Nd3 {[%clk 0:00:09]}  Qa7+ {[%clk 0:00:08]} 58. Kb3 {[%clk 0:00:09]}  Qb6+ {[%clk 0:00:07]} 59. Nb4 {[%clk 0:00:10]}  g5 {[%clk 0:00:06]} 60. Qe2 {[%clk 0:00:10]}  Kg6 {[%clk 0:00:06]} 61. Qg4 {[%clk 0:00:10]}  Qf2 {[%clk 0:00:06]} 62. Kc4 {[%clk 0:00:10]}  Qf4 {[%clk 0:00:06]} 63. Qg2 {[%clk 0:00:10]}  g4 {[%clk 0:00:06]} 64. Kc5 {[%clk 0:00:10]}  Rd2 {[%clk 0:00:06]} 65. Nc6 {[%clk 0:00:10]}  Rxg2 {[%clk 0:00:06]} 0-1


[Site "https://www.chess.com"]